bitfinex/quotes_BTCUSD_20250709
["timestamp","ask_amount","ask_price","bid_price","bid_amount"]
[1752064414458,0.48586472,109640.0,109630.0,0.34654192]
[1752064415646,0.24593576,109640.0,109630.0,0.34654192]
[1752064415837,0.48586472,109640.0,109630.0,0.34754192]
[1752064416052,0.44058522,109640.0,109630.0,0.34754192]
[1752064416284,0.44058522,109640.0,109630.0,0.38822104]
[1752064416504,0.44058522,109640.0,109630.0,0.39734263]
[1752064416718,0.44058522,109640.0,109630.0,0.34754192]
[1752064418093,0.43146472,109640.0,109630.0,0.34754192]
[1752064418289,0.43146472,109640.0,109630.0,0.38822104]
[1752064418710,0.43146472,109640.0,109630.0,0.34754192]
[1752064418904,0.43146472,109640.0,109630.0,0.38822104]
[1752064419813,0.43146472,109640.0,109630.0,0.34754192]
[1752064420474,0.19153576,109640.0,109630.0,0.34754192]
[1752064420613,0.43146472,109640.0,109630.0,0.34754192]
[1752064421151,0.19153576,109640.0,109630.0,0.34754192]
[1752064421384,0.43146472,109640.0,109630.0,0.34754192]
[1752064422527,0.43146472,109640.0,109630.0,0.3475381]
[1752064422528,0.42234413,109640.0,109630.0,0.3475381]
[1752064424660,0.18241517,109640.0,109630.0,0.3475381]
[1752064424875,0.42234413,109640.0,109630.0,0.3475381]
[1752064425246,0.32903547,109650.0,109640.0,0.18241517]
[1752064425445,0.47275547,109650.0,109640.0,0.20225492]
[1752064425657,0.71268443,109650.0,109640.0,0.01983975]
[1752064426030,0.47275547,109650.0,109640.0,0.01983975]
[1752064426231,0.32611854,109650.0,109640.0,0.20225492]
[1752064426477,0.5660475,109650.0,109640.0,0.20225492]
[1752064427011,0.56698334,109650.0,109640.0,0.20225492]
[1752064427958,0.001,109650.0,109640.0,0.20225492]
[1752064428162,0.02023943,109650.0,109640.0,0.27419634]
[1752064428368,0.26922349,109650.0,109640.0,0.32399596]
[1752064428572,0.26922349,109650.0,109640.0,0.31487546]
[1752064428573,0.45162203,109650.0,109640.0,0.31487546]
[1752064428773,0.45160546,109650.0,109640.0,0.27419634]
[1752064430139,0.45160546,109650.0,109640.0,0.26507567]
[1752064430380,0.44248612,109650.0,109640.0,0.20225492]
[1752064430502,0.44248612,109650.0,109640.0,0.21137567]
[1752064430703,0.44248612,109650.0,109640.0,0.20225492]
[1752064430905,0.02023935,109650.0,109640.0,0.21137551]
[1752064431348,0.26008758,109650.0,109640.0,0.23787551]
[1752064431499,0.44248612,109650.0,109640.0,0.26477551]
[1752064431829,0.20263789,109650.0,109640.0,0.26477559]
[1752064432036,0.44248612,109650.0,109640.0,0.26477559]
[1752064433208,0.44248612,109650.0,109640.0,0.20225492]
[1752064433209,0.43336653,109650.0,109640.0,0.20225492]
[1752064434235,0.1935183,109650.0,109640.0,0.20225492]
[1752064434431,0.43336653,109650.0,109640.0,0.20225492]
[1752064434636,0.43336653,109650.0,109640.0,0.21137567]
[1752064434874,0.43336653,109650.0,109640.0,0.27679634]
[1752064435142,0.1935183,109650.0,109640.0,0.28591693]
[1752064435282,0.43336653,109650.0,109640.0,0.28591693]
[1752064435484,0.43336653,109650.0,109640.0,0.27679634]
[1752064435865,0.43336653,109650.0,109640.0,0.20225492]
[1752064436197,0.43336653,109650.0,109640.0,0.18526879]
[1752064436905,0.1935183,109650.0,109640.0,0.18526851]
[1752064437104,0.43336653,109650.0,109640.0,0.18526851]
[1752064438440,0.1935183,109650.0,109640.0,0.18526851]
[1752064438655,0.43336653,109650.0,109640.0,0.18526851]
[1752064439943,0.43336653,109650.0,109640.0,0.32890851]
[1752064440202,0.1935183,109650.0,109640.0,0.18526851]
[1752064440417,0.43336653,109650.0,109640.0,0.32890851]
[1752064441138,0.1935183,109650.0,109640.0,0.32890851]
[1752064441388,0.43336653,109650.0,109640.0,0.32890851]
[1752064441761,0.43336653,109650.0,109640.0,0.32605517]
[1752064441970,0.43336653,109650.0,109640.0,0.32890851]
[1752064442182,0.42424677,109650.0,109640.0,0.32890851]
[1752064443004,0.18439854,109650.0,109640.0,0.32890851]
[1752064443213,0.42424677,109650.0,109640.0,0.32890851]
[1752064444654,0.69883882,109650.0,109640.0,0.14645334]
[1752064444793,0.716795,109650.0,109640.0,0.14645334]
[1752064445455,0.47694677,109650.0,109640.0,0.14645334]
[1752064445663,0.44974677,109650.0,109640.0,0.14645334]
[1752064445821,0.20989854,109650.0,109640.0,0.14645334]
[1752064446029,0.44974677,109650.0,109640.0,0.14645334]
[1752064447333,0.42424677,109650.0,109640.0,0.14645334]
[1752064447551,0.18439854,109650.0,109640.0,0.14645337]
[1752064447741,0.42424677,109650.0,109640.0,0.14645337]
[1752064448138,0.42424677,109650.0,109640.0,0.32886854]
[1752064448852,0.4242671,109650.0,109640.0,0.32886854]
[1752064449935,0.4242671,109650.0,109640.0,0.14645337]
[1752064450530,0.4242671,109650.0,109640.0,0.14645338]
[1752064452189,0.4242671,109650.0,109640.0,0.32886855]
[1752064454965,0.44250637,109650.0,109640.0,0.32886855]
[1752064457187,0.43338686,109650.0,109640.0,0.32886855]
[1752064457405,0.43338686,109650.0,109640.0,0.36960438]
[1752064458404,0.18439854,109650.0,109640.0,0.36960438]
[1752064458731,0.4242671,109650.0,109640.0,0.36960438]
[1752064460151,0.4242671,109650.0,109640.0,0.22600438]
[1752064460370,0.4242671,109650.0,109640.0,0.36960438]
[1752064462035,0.4242671,109650.0,109640.0,0.36960437]
[1752064465918,0.18439854,109650.0,109640.0,0.36960437]
[1752064466250,0.4242671,109650.0,109640.0,0.42380437]
[1752064472498,0.43338686,109650.0,109640.0,0.43292512]
[1752064472705,0.44250637,109650.0,109640.0,0.43292512]
[1752064472911,0.44250637,109650.0,109640.0,0.44204571]
[1752064473119,0.44250637,109650.0,109640.0,0.44204579]
[1752064473740,0.44250637,109650.0,109640.0,0.43292512]
[1752064474409,0.44250637,109650.0,109640.0,0.42380437]
[1752064475016,0.44250637,109650.0,109640.0,0.44080182]
[1752064475989,0.20263781,109650.0,109640.0,0.44080182]
[1752064476190,0.44250637,109650.0,109640.0,0.44080182]
[1752064476406,0.44250637,109650.0,109640.0,0.39572257]
[1752064476607,0.44250637,109650.0,109640.0,0.38660206]
[1752064480232,0.43338686,109650.0,109640.0,0.38660206]
[1752064482595,0.43338686,109650.0,109640.0,0.20418689]
[1752064482732,0.43338686,109650.0,109640.0,0.38660229]
[1752064484340,0.1935183,109650.0,109640.0,0.38660229]
[1752064484479,0.43338686,109650.0,109640.0,0.38660229]
[1752064485427,0.43338686,109650.0,109640.0,0.38660263]
[1752064486785,0.1935183,109650.0,109640.0,0.43960263]
[1752064486990,0.43338686,109650.0,109640.0,0.43960263]
[1752064487206,0.1935183,109650.0,109640.0,0.43960263]
[1752064487397,0.43338686,109650.0,109640.0,0.43960263]
[1752064487948,0.1935183,109650.0,109640.0,0.43960263]
[1752064488124,0.0202391,109650.0,109640.0,0.4487233]
[1752064488328,0.45162596,109650.0,109640.0,0.45784389]
[1752064488689,0.45162596,109650.0,109640.0,0.45772389]
[1752064488898,0.01111926,109650.0,109640.0,0.46684389]
[1752064489150,0.02935835,109650.0,109640.0,0.46684406]
[1752064489364,0.26922691,109650.0,109640.0,0.46684406]
[1752064489585,0.26922691,109650.0,109640.0,0.47596431]
[1752064489710,0.02935835,109650.0,109640.0,0.46684406]
[1752064489915,0.26922691,109650.0,109640.0,0.32336406]
[1752064490151,0.26922691,109650.0,109640.0,0.46684406]
[1752064490412,0.03847811,109650.0,109640.0,0.46684406]
[1752064490618,0.27834667,109650.0,109640.0,0.4486033]
[1752064490880,0.46074521,109650.0,109640.0,0.45772389]
[1752064491078,0.46074521,109650.0,109640.0,0.31424389]
[1752064491253,0.22999657,109650.0,109640.0,0.46684439]
[1752064491422,0.46986513,109650.0,109640.0,0.46684439]
[1752064492282,0.04759803,109650.0,109640.0,0.46684439]
[1752064492485,0.28746659,109650.0,109640.0,0.46684439]
[1752064492683,0.28746651,109650.0,109640.0,0.46680439]
[1752064493064,0.28746651,109650.0,109640.0,0.32336439]
[1752064493248,0.46074579,109650.0,109640.0,0.45768389]
[1752064493448,0.46074579,109650.0,109640.0,0.46680439]
[1752064493654,0.46074579,109650.0,109640.0,0.45768389]
[1752064494073,0.46074579,109650.0,109640.0,0.46679951]
[1752064494496,0.46074579,109650.0,109640.0,0.44855842]
[1752064494729,0.45162637,109650.0,109640.0,0.3955585]
[1752064495003,0.45162637,109650.0,109640.0,0.40467917]
[1752064495573,0.45162637,109650.0,109640.0,0.3955585]
[1752064495772,0.45162637,109650.0,109640.0,0.40467917]
[1752064496675,0.45162637,109650.0,109640.0,0.38643775]
[1752064496676,0.21175781,109650.0,109640.0,0.38643775]
[1752064496939,0.45162637,109650.0,109640.0,0.3955585]
[1752064497332,0.45162637,109650.0,109640.0,0.38643775]
[1752064497833,0.45162637,109650.0,109640.0,0.3955585]
[1752064498060,0.45162637,109650.0,109640.0,0.24299775]
[1752064498272,0.45162637,109650.0,109640.0,0.38643775]
[1752064498466,0.45162637,109650.0,109640.0,0.39555842]
[1752064498869,0.45162637,109650.0,109640.0,0.3955585]
[1752064499859,0.45162637,109650.0,109640.0,0.40467917]
[1752064500165,0.45162637,109650.0,109640.0,0.3955585]
[1752064500374,0.45162637,109650.0,109640.0,0.24299775]
[1752064500573,0.45162637,109650.0,109640.0,0.3955185]
[1752064500817,0.45162637,109650.0,109640.0,0.43113917]
[1752064500995,0.45162637,109650.0,109640.0,0.4497185]
[1752064501219,0.45162637,109650.0,109640.0,0.44059775]
[1752064501392,0.4425067,109650.0,109640.0,0.44059775]
[1752064501789,0.4425067,109650.0,109640.0,0.41289775]
[1752064502077,0.4425067,109650.0,109640.0,0.4128965]
[1752064502321,0.4425067,109650.0,109640.0,0.42201725]
[1752064502556,0.4425067,109650.0,109640.0,0.4128965]
[1752064502685,0.4425067,109650.0,109640.0,0.42201725]
[1752064502889,0.4425067,109650.0,109640.0,0.27861725]
[1752064503143,0.4425067,109650.0,109640.0,0.42201725]
[1752064503298,0.4425067,109650.0,109640.0,0.4128965]
[1752064503715,0.4425067,109650.0,109640.0,0.42201725]
[1752064504248,0.4425067,109650.0,109640.0,0.43113792]
[1752064504558,0.4425067,109650.0,109640.0,0.3863965]
[1752064504759,0.4425067,109650.0,109640.0,0.38354319]
[1752064504937,0.4425067,109650.0,109640.0,0.3863965]
[1752064505348,0.4425067,109650.0,109640.0,0.39551725]
[1752064506145,0.20263814,109650.0,109640.0,0.39551725]
[1752064506352,0.4425067,109650.0,109640.0,0.40463792]
[1752064506553,0.4425067,109650.0,109640.0,0.45773792]
[1752064506775,0.4425067,109650.0,109640.0,0.46685851]
[1752064506776,0.20263814,109650.0,109640.0,0.46685851]
[1752064507028,0.4425067,109650.0,109640.0,0.46685851]
[1752064507386,0.4425067,109650.0,109640.0,0.45773792]
[1752064507943,0.20263814,109650.0,109640.0,0.45773828]
[1752064508270,0.4425067,109650.0,109640.0,0.76685887]
[1752064508496,0.4425067,109650.0,109640.0,0.74861761]
[1752064508671,0.4425067,109650.0,109640.0,0.73949686]
[1752064508904,0.4425067,109650.0,109640.0,0.73945686]
[1752064509101,0.4425067,109650.0,109640.0,0.74857761]
[1752064509555,0.20263814,109650.0,109640.0,0.75769828]
[1752064509857,0.4425067,109650.0,109640.0,0.75769828]
[1752064510398,0.4425067,109650.0,109640.0,0.74857761]
[1752064510595,0.4425067,109650.0,109640.0,0.74857773]
[1752064510793,0.4425067,109650.0,109640.0,0.7576984]
[1752064511652,0.4425067,109650.0,109640.0,0.60521773]
[1752064511849,0.4425067,109650.0,109640.0,0.73945698]
[1752064512048,0.4425067,109650.0,109640.0,0.69547773]
[1752064512714,0.4425067,109650.0,109640.0,0.7045984]
[1752064513014,0.4425067,109650.0,109640.0,0.7572984]
[1752064513427,0.4425067,109650.0,109640.0,0.74817773]
[1752064514043,0.20263814,109650.0,109640.0,0.74817773]
[1752064514261,0.20263814,109650.0,109640.0,0.7572984]
[1752064514466,0.20263814,109650.0,109640.0,0.74817773]
[1752064514671,0.4425067,109650.0,109640.0,0.7572984]
[1752064515078,0.4425067,109650.0,109640.0,0.75730097]
[1752064515693,0.20263814,109650.0,109640.0,0.75730097]
[1752064515898,0.4425067,109650.0,109640.0,0.75730097]
[1752064516109,0.4425067,109650.0,109640.0,0.71656514]
[1752064516331,0.4425067,109650.0,109640.0,0.75735528]
[1752064516527,0.4425067,109650.0,109640.0,0.74823461]
[1752064516945,0.4425067,109650.0,109640.0,0.75735528]
[1752064517594,0.4425067,109650.0,109640.0,0.74823461]
[1752064518012,0.4425067,109650.0,109640.0,0.75735528]
[1752064518834,0.4425067,109650.0,109640.0,0.74823461]
[1752064520077,0.20263814,109650.0,109640.0,0.74823461]
[1752064520326,0.20263814,109650.0,109640.0,0.75735528]
[1752064520531,0.4425067,109650.0,109640.0,0.74823461]
[1752064520738,0.4425067,109650.0,109640.0,0.75735528]
[1752064520962,0.4425067,109650.0,109640.0,0.75735794]
[1752064522993,0.20263814,109650.0,109640.0,0.74815727]
[1752064523475,0.4425067,109650.0,109640.0,0.74815727]
[1752064523682,0.4425067,109650.0,109640.0,0.75727794]
[1752064523889,0.4425067,109650.0,109640.0,0.74815727]
[1752064524470,0.4425067,109650.0,109640.0,0.72235727]
[1752064524910,0.4425067,109650.0,109640.0,0.73147794]
[1752064525307,0.4425067,109650.0,109640.0,0.72235727]
[1752064525490,0.4425067,109650.0,109640.0,0.69545727]
[1752064526110,0.4425067,109650.0,109640.0,0.70457794]
[1752064526640,0.4425067,109650.0,109640.0,0.71084522]
[1752064526783,0.4425067,109650.0,109640.0,0.68472673]
[1752064527186,0.4425067,109650.0,109640.0,0.67560606]
[1752064527390,0.4425067,109650.0,109640.0,0.66644531]
[1752064527840,0.20263814,109650.0,109640.0,0.68468673]
[1752064528048,0.20263814,109650.0,109640.0,0.67556606]
[1752064528217,0.4425067,109650.0,109640.0,0.68468673]
[1752064530079,0.4425067,109650.0,109640.0,0.67556606]
[1752064530879,0.4425067,109650.0,109640.0,0.68468673]
[1752064531064,0.4425067,109650.0,109640.0,0.67556606]
[1752064531869,0.20263814,109650.0,109640.0,0.67556606]
[1752064532108,0.20263814,109650.0,109640.0,0.68468673]
[1752064532335,0.4425067,109650.0,109640.0,0.68468673]
[1752064532531,0.4425067,109650.0,109640.0,0.67556606]
[1752064532905,0.4425067,109650.0,109640.0,0.52320531]
[1752064533083,0.4425067,109650.0,109640.0,0.66644531]
[1752064533675,0.4425067,109650.0,109640.0,0.67556598]
[1752064533876,0.4425067,109650.0,109640.0,0.67556606]
[1752064534094,0.4425067,109650.0,109640.0,0.66644531]
[1752064534905,0.4425067,109650.0,109640.0,0.37556606]
[1752064536285,0.4425067,109650.0,109640.0,0.36644531]
[1752064536482,0.4425067,109650.0,109640.0,0.36640531]
[1752064539164,0.4425067,109650.0,109640.0,0.56640531]
[1752064539563,0.20263814,109650.0,109640.0,0.56640531]
[1752064539776,0.4425067,109650.0,109640.0,0.56640531]
[1752064539995,0.20263814,109650.0,109640.0,0.56640531]
[1752064540195,0.4425067,109650.0,109640.0,0.56640531]
[1752064541429,0.20263814,109650.0,109640.0,0.57552606]
[1752064541696,0.4425067,109650.0,109640.0,0.56640531]
[1752064541851,0.43338694,109650.0,109640.0,0.56640531]
[1752064542969,0.19351838,109650.0,109640.0,0.56640531]
[1752064543177,0.43338694,109650.0,109640.0,0.56640531]
[1752064543377,0.43338694,109650.0,109640.0,0.57552606]
[1752064543593,0.43338694,109650.0,109640.0,0.56640531]
[1752064543780,0.43338694,109650.0,109640.0,0.58464673]
[1752064543981,0.43338694,109650.0,109640.0,0.56640531]
[1752064544769,0.19351838,109650.0,109640.0,0.56640531]
[1752064544972,0.43338694,109650.0,109640.0,0.56640531]
[1752064545559,0.19351838,109650.0,109640.0,0.56640531]
[1752064545760,0.43338694,109650.0,109640.0,0.42320531]
[1752064545990,0.43338694,109650.0,109640.0,0.56632531]
[1752064546361,0.43338694,109650.0,109640.0,0.57544606]
[1752064546603,0.19351838,109650.0,109640.0,0.57544606]
[1752064546806,0.43338694,109650.0,109640.0,0.57544606]
[1752064547406,0.43338694,109650.0,109640.0,0.56632531]
[1752064548482,0.43338694,109650.0,109640.0,0.57544606]
[1752064549105,0.43338694,109650.0,109640.0,0.56632531]
[1752064549647,0.43338694,109650.0,109640.0,0.57544606]
[1752064549886,0.43338694,109650.0,109640.0,0.56632531]
[1752064550309,0.19351838,109650.0,109640.0,0.56632531]
[1752064550514,0.43338694,109650.0,109640.0,0.56632531]
[1752064551151,0.19351838,109650.0,109640.0,0.56632531]
[1752064551385,0.43338694,109650.0,109640.0,0.56632531]
[1752064552127,0.19351838,109650.0,109640.0,0.56632531]
[1752064552337,0.43338694,109650.0,109640.0,0.56632531]
[1752064552743,0.19351838,109650.0,109640.0,0.56632531]
[1752064552975,0.43338694,109650.0,109640.0,0.56632531]
[1752064553173,0.19351838,109650.0,109640.0,0.56632531]
[1752064553390,0.43338694,109650.0,109640.0,0.56632531]
[1752064555516,0.43338694,109650.0,109640.0,0.42320531]
[1752064555726,0.43338694,109650.0,109640.0,0.57540606]
[1752064555917,0.43338694,109650.0,109640.0,0.60280606]
[1752064556777,0.43338694,109650.0,109640.0,0.60280377]
[1752064557032,0.43338694,109650.0,109640.0,0.61067732]
[1752064557357,0.43338694,109650.0,109640.0,0.61979807]
[1752064557766,0.19351838,109650.0,109640.0,0.61067732]
[1752064558089,0.19351838,109650.0,109640.0,0.85966663]
[1752064558293,0.19351838,109650.0,109640.0,0.88556663]
[1752064558479,0.20263797,109650.0,109640.0,0.88556663]
[1752064559340,0.20263797,109650.0,109640.0,0.8946873]
[1752064559938,0.20263797,109650.0,109640.0,0.88556663]
[1752064560237,0.20263797,109650.0,109640.0,0.88556668]
[1752064560448,0.20263797,109650.0,109640.0,0.89468735]
[1752064561328,0.20263797,109650.0,109640.0,0.88556661]
[1752064561540,0.20263797,109650.0,109640.0,0.89468728]
[1752064561888,0.20263797,109650.0,109640.0,0.88556661]
[1752064562106,0.20263797,109650.0,109640.0,0.88556667]
[1752064562501,0.20263797,109650.0,109640.0,0.89468734]
[1752064563017,0.20263797,109650.0,109640.0,0.90380793]
[1752064563223,0.20263797,109650.0,109640.0,0.89468734]
[1752064563841,0.20263797,109650.0,109640.0,0.90380793]
[1752064564492,0.02935885,109650.0,109640.0,0.91292835]
[1752064564895,0.02935885,109650.0,109640.0,0.91292843]
[1752064564896,0.03847844,109650.0,109640.0,0.91292843]
[1752064565240,0.22087698,109650.0,109640.0,0.90380793]
[1752064565673,0.22087698,109650.0,109640.0,0.91292843]
[1752064565990,0.04759836,109650.0,109640.0,0.91292843]
[1752064566404,0.22087756,109650.0,109640.0,0.90380793]
[1752064567026,0.22087756,109650.0,109640.0,0.66393937]
[1752064567438,0.22087756,109650.0,109640.0,0.90380793]
[1752064567761,0.22087756,109650.0,109640.0,0.91292843]
[1752064568008,0.22087756,109650.0,109640.0,0.90380793]
[1752064568410,0.22087756,109650.0,109640.0,0.91292843]
[1752064568623,0.03847902,109650.0,109640.0,0.90380793]
[1752064568865,0.03847902,109650.0,109640.0,0.91292843]
[1752064569035,0.22087756,109650.0,109640.0,0.90380793]
[1752064569186,0.22087756,109650.0,109640.0,0.91292843]
[1752064569391,0.03847902,109650.0,109640.0,0.91292843]
[1752064569588,0.03847902,109650.0,109640.0,0.67305987]
[1752064569827,0.03847902,109650.0,109640.0,0.91292843]
[1752064570411,0.22087756,109650.0,109640.0,0.90380793]
[1752064570632,0.21175797,109650.0,109640.0,0.89468726]
[1752064570989,0.21175797,109650.0,109640.0,0.89468734]
[1752064571190,0.21175797,109650.0,109640.0,0.64569811]
[1752064571191,0.2026383,109650.0,109640.0,0.64569811]
[1752064571423,0.2026383,109650.0,109640.0,0.89468734]
[1752064572048,0.2026383,109650.0,109640.0,0.90380793]
[1752064572627,0.2026383,109650.0,109640.0,0.89468734]
[1752064572833,0.2026383,109650.0,109640.0,0.64569811]
[1752064573070,0.2026383,109650.0,109640.0,0.62891878]
[1752064573210,0.2026383,109650.0,109640.0,0.68918667]
[1752064573414,0.2026383,109650.0,109640.0,0.83210667]
[1752064573814,0.2026383,109650.0,109640.0,0.59223237]
[1752064574028,0.2026383,109650.0,109640.0,0.83210093]
[1752064574238,0.2026383,109650.0,109640.0,0.58311162]
[1752064574817,0.2026383,109650.0,109640.0,0.59223237]
[1752064575447,0.2026383,109650.0,109640.0,1.29223237]
[1752064575646,0.2026383,109650.0,109640.0,1.53210093]
[1752064576729,0.2026383,109650.0,109640.0,1.53210133]
[1752064576906,0.2026383,109650.0,109640.0,1.52298058]
[1752064577307,0.2026383,109650.0,109640.0,1.28311202]
[1752064579497,0.44250686,109650.0,109640.0,1.28311202]
[1752064580121,0.44250686,109650.0,109640.0,1.28307202]
[1752064580556,0.44250686,109650.0,109640.0,1.29219277]
[1752064580768,0.44250686,109650.0,109640.0,1.28307202]
[1752064580929,0.44250686,109650.0,109640.0,1.29219277]
[1752064581131,0.44250686,109650.0,109640.0,1.28307202]
[1752064581338,0.2026383,109650.0,109640.0,1.28307202]
[1752064582024,0.19351846,109650.0,109640.0,1.28307202]
[1752064583036,0.19351846,109650.0,109640.0,1.29219277]
[1752064583239,0.19351846,109650.0,109640.0,1.28307202]
[1752064583463,0.19351846,109650.0,109640.0,1.10065685]
[1752064583684,0.19351846,109650.0,109640.0,1.28307202]
[1752064585967,0.19351846,109650.0,109640.0,1.29219277]
[1752064586143,0.43338702,109650.0,109640.0,1.28307202]
[1752064586344,0.19351846,109650.0,109640.0,1.28307202]
[1752064587221,0.19351846,109650.0,109640.0,1.26608302]
[1752064588696,0.19351846,109650.0,109640.0,1.27520377]
[1752064588892,0.19351846,109650.0,109640.0,1.26608302]
[1752064589792,0.4242671,109650.0,109640.0,0.94078785]
[1752064590024,0.4242671,109650.0,109640.0,1.26604302]
[1752064590678,0.4500671,109650.0,109640.0,1.26604302]
[1752064591560,0.21019854,109650.0,109640.0,1.26604302]
[1752064591999,0.4500671,109650.0,109640.0,1.26604302]
[1752064592662,0.4242671,109650.0,109640.0,1.08362785]
[1752064592904,0.4242671,109650.0,109640.0,1.26604302]
[1752064593119,0.4518671,109650.0,109640.0,1.08362785]
[1752064593352,0.66184808,109650.0,109640.0,0.94078785]
[1752064593574,1.38451664,109650.0,109640.0,0.7]
[1752064593799,1.41192964,109650.0,109640.0,0.7]
[1752064594710,1.41092964,109650.0,109640.0,0.7]
[1752064594939,1.17006108,109650.0,109640.0,0.7]
[1752064595153,1.17406108,109650.0,109640.0,0.7]
[1752064595380,1.17606108,109650.0,109640.0,0.7]
[1752064595821,1.03326108,109650.0,109640.0,0.7]
[1752064595990,1.08521703,109650.0,109640.0,0.7]
[1752064596219,1.05780403,109650.0,109640.0,0.7]
[1752064596343,0.67513547,109650.0,109640.0,0.7]
[1752064596542,1.05780403,109650.0,109640.0,0.7]
[1752064596771,1.14924096,109650.0,109640.0,0.7]
[1752064597146,0.7665724,109650.0,109640.0,0.7]
[1752064597351,1.05780403,109650.0,109640.0,0.7]
[1752064598582,0.81793547,109650.0,109640.0,0.7]
[1752064598745,0.58369854,109650.0,109640.0,1.08262856]
[1752064598951,0.18839854,109650.0,109640.0,1.26504373]
[1752064599515,0.4545671,109650.0,109640.0,0.7]
[1752064599719,0.4791671,109650.0,109640.0,0.84276]
[1752064600324,0.23929854,109650.0,109640.0,0.84276]
[1752064600541,0.23529854,109650.0,109640.0,0.84276]
[1752064600935,0.4751671,109650.0,109640.0,0.84276]
[1752064601137,0.23629854,109650.0,109640.0,0.84276]
[1752064601813,0.23729854,109650.0,109640.0,0.84276]
[1752064602189,0.4771671,109650.0,109640.0,0.84276]
[1752064603711,0.23729854,109650.0,109640.0,0.84276]
[1752064605574,0.4771671,109650.0,109640.0,0.84276]
[1752064607183,0.23729854,109650.0,109640.0,0.84276]
[1752064607388,0.4771671,109650.0,109640.0,0.84276]
[1752064608894,0.23729854,109650.0,109640.0,0.84276]
[1752064610014,0.4505671,109650.0,109640.0,0.84276]
[1752064610636,0.60688588,109650.0,109640.0,0.7]
[1752064610845,0.60688588,109650.0,109640.0,0.84272]
[1752064611061,0.56830403,109650.0,109640.0,0.84272]
[1752064614562,0.56830403,109650.0,109640.0,0.84268]
[1752064616894,0.4242671,109650.0,109640.0,0.84268]
[1752064617108,0.18439854,109650.0,109640.0,1.29186373]
[1752064617303,0.18439854,109650.0,109640.0,1.05199517]
[1752064618043,0.4242671,109650.0,109640.0,1.05199517]
[1752064618445,0.4242671,109650.0,109640.0,1.02509517]
[1752064618781,0.4242671,109650.0,109640.0,0.84268]
[1752064621649,0.18439854,109650.0,109640.0,0.84268]
[1752064621992,0.4242671,109650.0,109640.0,0.84268]
[1752064624245,0.4242671,109650.0,109640.0,0.84264]
[1752064624655,0.18439854,109650.0,109640.0,0.84264]
[1752064624950,0.01111926,109650.0,109640.0,1.58675413]
[1752064625155,0.22087657,109650.0,109640.0,1.37850135]
[1752064625314,0.03847803,109650.0,109640.0,1.39674244]
[1752064625691,0.03847803,109650.0,109640.0,1.3967435]
[1752064625826,0.03847803,109650.0,109640.0,1.38762308]
[1752064626027,0.03847803,109650.0,109640.0,1.39674358]
[1752064626254,0.02935819,109650.0,109640.0,1.705864]
[1752064626566,0.03847795,109650.0,109640.0,1.70586359]
[1752064627593,0.03847786,109650.0,109640.0,1.69674292]
[1752064628129,0.03847786,109650.0,109640.0,1.70586317]
[1752064628329,0.03847786,109650.0,109640.0,1.68762258]
[1752064628536,0.0475977,109650.0,109640.0,1.68762258]
[1752064628651,0.03847786,109650.0,109640.0,1.68762258]
[1752064629017,0.0475977,109650.0,109640.0,1.67850216]
[1752064629184,0.0475977,109650.0,109640.0,1.68762258]
[1752064629402,0.03847844,109650.0,109640.0,1.4295131]
[1752064629636,0.22087698,109650.0,109640.0,1.66938166]
[1752064629818,0.22087698,109650.0,109640.0,1.42951318]
[1752064630029,0.22087698,109650.0,109640.0,1.66938174]
[1752064630396,0.20263805,109650.0,109640.0,1.23793734]
[1752064630591,0.20263805,109650.0,109640.0,1.42035251]
[1752064630793,0.20263805,109650.0,109640.0,1.66022107]
[1752064631085,0.20263805,109650.0,109640.0,1.66934174]
[1752064631287,0.20263805,109650.0,109640.0,1.66933499]
[1752064631631,0.20263805,109650.0,109640.0,1.66933507]
[1752064632087,0.20263805,109650.0,109640.0,1.42034576]
[1752064632281,0.20263805,109650.0,109640.0,1.66021432]
[1752064632493,0.20263805,109650.0,109640.0,1.42034576]
[1752064632698,0.20263805,109650.0,109640.0,1.66021432]
[1752064633240,0.20263805,109650.0,109640.0,1.42034824]
[1752064633393,0.20263805,109650.0,109640.0,1.6602168]
[1752064633616,0.19351838,109650.0,109640.0,1.27774824]
[1752064633777,0.19351838,109650.0,109640.0,1.6602168]
[1752064635068,0.19351838,109650.0,109640.0,1.66933755]
[1752064635299,0.19351838,109650.0,109640.0,1.6602168]
[1752064635921,0.19351838,109650.0,109640.0,1.66933755]
[1752064636750,0.19351838,109650.0,109640.0,1.67845822]
[1752064636979,0.19351838,109650.0,109640.0,1.66933755]
[1752064637127,0.19351838,109650.0,109640.0,1.67845822]
[1752064637345,0.19351838,109650.0,109640.0,1.66933755]
[1752064637764,0.19351838,109650.0,109640.0,1.27774824]
[1752064637978,0.19351838,109650.0,109640.0,1.6601768]
[1752064638212,0.19351838,109650.0,109640.0,1.42030824]
[1752064638384,0.19351838,109650.0,109640.0,1.6601768]
[1752064639622,0.19351838,109650.0,109640.0,1.66929755]
[1752064639832,0.19351838,109650.0,109640.0,1.6601768]
[1752064640392,0.19351838,109650.0,109640.0,1.5176168]
[1752064641428,0.19351838,109650.0,109640.0,1.6601768]
[1752064642106,0.19351838,109650.0,109640.0,1.66929755]
[1752064642327,0.19351838,109650.0,109640.0,1.42030824]
[1752064642735,0.19351838,109650.0,109640.0,1.6601768]
[1752064643374,0.18439854,109650.0,109640.0,1.6601768]
[1752064643597,0.18439854,109650.0,109640.0,1.66929755]
[1752064643803,0.18439854,109650.0,109640.0,1.6601768]
[1752064644388,0.18439854,109650.0,109640.0,1.6055768]
[1752064646470,0.18439854,109650.0,109640.0,1.6336768]
[1752064647101,0.18439854,109650.0,109640.0,1.64279755]
[1752064647722,0.18439854,109650.0,109640.0,1.6336768]
[1752064647865,0.18439854,109650.0,109640.0,1.64279755]
[1752064648229,0.18439854,109650.0,109640.0,1.6336768]
[1752064648554,0.18439854,109650.0,109640.0,1.3938196]
[1752064648754,0.18439854,109650.0,109640.0,1.63368816]
[1752064648961,0.18439854,109650.0,109640.0,1.64280891]
[1752064649163,0.18439854,109650.0,109640.0,1.63368816]
[1752064650242,0.18439854,109650.0,109640.0,1.3938196]
[1752064650461,0.18439854,109650.0,109640.0,1.63368816]
[1752064651107,0.18439854,109650.0,109640.0,1.64280891]
[1752064651641,0.1935183,109650.0,109640.0,1.67762958]
[1752064652289,0.1935183,109650.0,109640.0,1.4195196]
[1752064652447,0.1935183,109650.0,109640.0,1.66850891]
[1752064653101,0.20263731,109650.0,109640.0,1.68675017]
[1752064653315,0.21175707,109650.0,109640.0,1.68675017]
[1752064653498,0.21175707,109650.0,109640.0,1.44688161]
[1752064653717,0.21175707,109650.0,109640.0,1.67762958]
[1752064654097,0.21175707,109650.0,109640.0,1.68675017]
[1752064654741,0.21175707,109650.0,109640.0,1.67762958]
[1752064654913,0.21175707,109650.0,109640.0,1.68675017]
[1752064655661,0.21175707,109650.0,109640.0,1.67762958]
[1752064655803,0.21175707,109650.0,109640.0,1.68675017]
[1752064656423,0.21175707,109650.0,109640.0,1.74109588]
[1752064656626,0.21175707,109650.0,109640.0,1.75021638]
[1752064656627,0.03847845,109650.0,109640.0,1.75021638]